{"text_format":"3","workbook":"xlsx","n_sheets":4,"sheets":["Início","Despesas","Receita","Resumo de lucros e perdas"],"not_rendered":{"charts":1},"read":"whole","date_system":"1900"}

{"sheet":"Início","index":0,"n_rows":8,"n_cols":2,"rows_kept":8}
[null,"SOBRE ESTE MODELO"]
[null,"Use esta pasta de trabalho de orçamento de evento para acompanhar as despesas incorridas e receita agregada de um evento."]
[null,"Preencha o nome do evento e insira informações em tabelas na planilha de despesas e receita planilha."]
[null,"O total de receitas e despesas é calculado automaticamente."]
[null,"O resumo e o gráfico de Lucro e Perda são automaticamente atualizados na planilha de resumo de lucros e perdas."]
[null,"Observação: "]
[null,"há instruções adicionais na coluna A de cada planilha. Este texto está oculto de propósito. Para removê-lo, selecione a coluna A e selecione Excluir. Para reexibir o texto, selecione a coluna A e altere a cor da fonte."]
[null,"Saiba mais sobre as tabelas pressionando Shift e F10 dentro de uma tabela, selecione a opção TABELA e depois TEXTO ALTERNATIVO."]

{"sheet":"Despesas","index":1,"n_rows":32,"n_cols":8,"rows_kept":32,"merged":[[0,1,0,4],[2,1,3,1]]}
["Insira as despesas real e valor estimado para cada categoria respectivas tabelas nesta planilha, e o nome do evento na célula D1 para personalizar o título desta e outras planilhas. O título desta planilha está na célula H1. Instruções úteis sobre como usar esta planilha estão nas células desta coluna. A próxima instrução está na célula A3.","Orçamento de evento para o nome do evento",{"$nulls":5},"DESPESAS"]
[]
["Rótulo de despesas totais está na célula à direita, o rótulo estimado na célula G3 e real em H3.","DESPESAS TOTAIS",{"$nulls":4},"Valor estimado","Real"]
["As despesas previstas total na célula G4 e despesas reais Total em H4 são calculadas automaticamente. A próxima instrução está na célula A6.",{"$nulls":5},{"$f":"SUM(C11,C19,C25,C32,G11,G19,G24)","v":{"v":882,"d":"R$ 882.00"}},{"$f":"SUM(D11,D19,D25,D32,H11,H19,H24)","v":{"v":333,"d":"R$ 333.00"}}]
[]
["Insira despesas do site na tabela iniciando na célula à direita despesas de bebidas na tabela iniciando na célula F6. A próxima instrução está na célula A13.","Site","Valor estimado","Real",null,"Bebidas","Valor estimado","Real"]
[null,"Taxas da sala e espaço",{"v":500,"d":"R$ 500.00"},null,null,"Alimentação"]
[null,"Equipe de site",{"$nulls":3},"Bebidas",{"v":20,"d":"R$ 20.00"}]
[null,"Equipamentos",{"$nulls":3},"Roupa de mesa",null,{"v":20,"d":"R$ 20.00"}]
[null,"Mesas e cadeiras",{"$nulls":3},"Funcionários e gratuidades"]
[null,"Total",{"$f":"SUBTOTAL(109,DespesasSite[Valor estimado])","v":{"v":500,"d":"R$ 500.00"}},{"$f":"SUBTOTAL(109,DespesasSite[Real])","v":{"v":0,"d":"R$ 0.00"}},null,"Total",{"$f":"SUBTOTAL(109,DespesasBebidas[Valor estimado])","v":{"v":20,"d":"R$ 20.00"}},{"$f":"SUBTOTAL(109,DespesasBebidas[Real])","v":{"v":20,"d":"R$ 20.00"}}]
[]
["Inserir despesas de decoração na tabela iniciando na célula à direita e despesas de programa na tabela iniciando na célula F13. A próxima instrução está na célula A21.","Decorações","Valor estimado","Real",null,"Programa","Valor estimado","Real"]
[null,"Flores",{"v":200,"d":"R$ 200.00"},{"v":300,"d":"R$ 300.00"},null,"Executores"]
[null,"Velas",{"$nulls":3},"Falantes",{"v":30,"d":"R$ 30.00"}]
[null,"Iluminação",{"$nulls":3},"Viagem"]
[null,"Balões",{"$nulls":3},"Hotel"]
[null,"Fontes de papel",{"$nulls":3},"Outros"]
[null,"Total",{"$f":"SUBTOTAL(109,DespesasDecorações[Valor estimado])","v":{"v":200,"d":"R$ 200.00"}},{"$f":"SUBTOTAL(109,DespesasDecorações[Real])","v":{"v":300,"d":"R$ 300.00"}},null,"Total",{"$f":"SUBTOTAL(109,DespesasPrograma[Valor estimado])","v":{"v":30,"d":"R$ 30.00"}},{"$f":"SUBTOTAL(109,DespesasPrograma[Real])","v":{"v":0,"d":"R$ 0.00"}}]
[]
["Insira as despesas de publicidade na tabela iniciando na célula à direita e despesas de prêmios na tabela iniciando na célula F21. A próxima instrução está na célula A27.","Publicidade","Valor estimado","Real",null,"Prêmios","Valor estimado","Real"]
[null,"Trabalho com elementos gráficos",{"$nulls":3},"Faixa de opções/as placas/troféus"]
[null,"Impressão/fotocópia",{"v":20,"d":"R$ 20.00"},null,null,"Presentes",{"v":100,"d":"R$ 100.00"}]
[null,"Postagem",{"$nulls":3},"Total",{"$f":"SUBTOTAL(109,DespesasPrêmios[Valor estimado])","v":{"v":100,"d":"R$ 100.00"}},{"$f":"SUBTOTAL(109,DespesasPrêmios[Real])","v":{"v":0,"d":"R$ 0.00"}}]
[null,"Total",{"$f":"SUBTOTAL(109,DespesasPublicidade[Valor estimado])","v":{"v":20,"d":"R$ 20.00"}},{"$f":"SUBTOTAL(109,DespesasPublicidade[Real])","v":{"v":0,"d":"R$ 0.00"}}]
[]
["Insira as despesas diversas na tabela iniciando na célula à direita.","Diversos","Valor estimado","Real"]
[null,"Telefone",null,{"v":13,"d":"R$ 13.00"}]
[null,"Transporte",{"v":12,"d":"R$ 12.00"}]
[null,"Fontes de papel de carta"]
[null,"Serviços de fax"]
[null,"Total",{"$f":"SUBTOTAL(109,DepesasDiversos[Valor estimado])","v":{"v":12,"d":"R$ 12.00"}},{"$f":"SUBTOTAL(109,DepesasDiversos[Real])","v":{"v":13,"d":"R$ 13.00"}}]

{"sheet":"Receita","index":2,"n_rows":29,"n_cols":7,"rows_kept":29,"merged":[[0,1,0,3],[2,1,3,1]]}
["Insira os custos Reais e Estimados para cada categoria nas respectivas tabelas desta planilha. O título desta planilha é automaticamente atualizado nas células à direita. O título está na célula G1. Instruções úteis sobre como usar esta planilha estão nas células desta coluna. A próxima instrução está na célula A3.",{"$f":"Despesas!B1","v":"Orçamento de evento para o nome do evento"},{"$nulls":4},"RECEITA"]
[]
["O rótulo receita totais na célula à direita, rótulo valor estimado na célula F3 e real em G3.","RECEITA TOTAIS",{"$nulls":3},"Valor estimado","Real"]
["O total de receitas estimado é calculado automaticamente na célula F4 e Total de receitas real em G4.",{"$nulls":4},{"$f":"SUM(Admissões[[#Totals],[Receita estimada]],AnúnciosNoPrograma[[#Totals],[Receita estimada]],ApresentadoresOuFornecedores[[#Totals],[Receita estimada]],VendasDeItens[[#Totals],[Receita estimada]])","v":{"v":1936,"d":"R$ 1,936.00"}},{"$f":"SUM(Admissões[[#Totals],[Receita real]],AnúnciosNoPrograma[[#Totals],[Receita real]],ApresentadoresOuFornecedores[[#Totals],[Receita real]],VendasDeItens[[#Totals],[Receita real]])","v":{"v":1831,"d":"R$ 1,831.00"}}]
["O rótulo Admissões está na célula à direita.","ADMISSÃO"]
["Insira o número estimado e real de admissão com taxas de pedido na tabela iniciando na célula à direita. A receita estimada e real de admissão é calculada automaticamente. A próxima instrução está na célula A11.","Nº Estimado","Nº real.","Tipo","Preço","Receita estimada","Receita real"]
[null,300,278,"Adultos @",{"v":5,"d":"R$ 5.00"},{"$f":"B7*E7","v":{"v":1500,"d":"R$ 1,500.00"}},{"$f":"C7*E7","v":{"v":1390,"d":"R$ 1,390.00"}}]
[null,197,195,"Filhos @",{"v":2,"d":"R$ 2.00"},{"$f":"B8*E8","v":{"v":394,"d":"R$ 394.00"}},{"$f":"C8*E8","v":{"v":390,"d":"R$ 390.00"}}]
[null,42,51,"Outros @",{"v":1,"d":"R$ 1.00"},{"$f":"B9*E9","v":{"v":42,"d":"R$ 42.00"}},{"$f":"C9*E9","v":{"v":51,"d":"R$ 51.00"}}]
[null,"Total",{"$nulls":3},{"$f":"SUBTOTAL(109,Admissões[Receita estimada])","v":{"v":1936,"d":"R$ 1,936.00"}},{"$f":"SUBTOTAL(109,Admissões[Receita real])","v":{"v":1831,"d":"R$ 1,831.00"}}]
["Anúncios na etiqueta do programa está na célula à direita.","ANÚNCIOS NO PROGRAMA"]
["Insira o número real e estimado de anúncios no programa e taxas do anúncio na tabela iniciando na célula à direita. A receita estimada e real de anúncios é calculada automaticamente. A próxima instrução está na célula A17.","Nº Estimado","Nº real.","Tipo","Preço","Receita estimada","Receita real"]
[null,12,null,"Folha de rosto @",null,{"$f":"B13*E13","v":{"v":0,"d":"R$ 0.00"}},{"$f":"C13*E13","v":{"v":0,"d":"R$ 0.00"}}]
[null,null,158,"Metade das páginas @",null,{"$f":"B14*E14","v":{"v":0,"d":"R$ 0.00"}},{"$f":"C14*E14","v":{"v":0,"d":"R$ 0.00"}}]
[null,4,null,"Um quarto das páginas @",null,{"$f":"B15*E15","v":{"v":0,"d":"R$ 0.00"}},{"$f":"C15*E15","v":{"v":0,"d":"R$ 0.00"}}]
[null,"Total",{"$nulls":3},{"$f":"SUBTOTAL(109,AnúnciosNoPrograma[Receita estimada])","v":{"v":0,"d":"R$ 0.00"}},{"$f":"SUBTOTAL(109,AnúnciosNoPrograma[Receita real])","v":{"v":0,"d":"R$ 0.00"}}]
["A etiqueta de apresentadores ou fornecedores está na célula à direita.","APRESENTADORES/FORNECEDORES"]
["Insira o número real e estimado dos apresentadores e fornecedores e taxas booth na tabela iniciando na célula à direita. A receita estimada e real são calculadas automaticamente. A próxima instrução está na célula A23.","Nº Estimado","Nº real.","Tipo","Preço","Receita estimada","Receita real"]
[null,23,null,"Grande estande @",null,{"$f":"B19*E19","v":{"v":0,"d":"R$ 0.00"}},{"$f":"C19*E19","v":{"v":0,"d":"R$ 0.00"}}]
[null,354,null,"Estande MED. @",null,{"$f":"B20*E20","v":{"v":0,"d":"R$ 0.00"}},{"$f":"C20*E20","v":{"v":0,"d":"R$ 0.00"}}]
[null,56,null,"Pequeno estande @",null,{"$f":"B21*E21","v":{"v":0,"d":"R$ 0.00"}},{"$f":"C21*E21","v":{"v":0,"d":"R$ 0.00"}}]
[null,"Total",{"$nulls":3},{"$f":"SUBTOTAL(109,ApresentadoresOuFornecedores[Receita estimada])","v":{"v":0,"d":"R$ 0.00"}},{"$f":"SUBTOTAL(109,ApresentadoresOuFornecedores[Receita real])","v":{"v":0,"d":"R$ 0.00"}}]
["Venda de rótulo de itens está na célula à direita.","VENDAS DE ITENS"]
["Insira o número real e estimado de itens vendidos e taxas item na tabela iniciando na célula à direita. A receita estimada e real são calculadas automaticamente.","Nº Estimado","Nº real.","Tipo","Preço","Receita estimada","Receita real"]
[{"$nulls":3},"Itens @",null,{"$f":"B25*E25","v":{"v":0,"d":"R$ 0.00"}},{"$f":"C25*E25","v":{"v":0,"d":"R$ 0.00"}}]
[null,123,null,"Itens @",null,{"$f":"B26*E26","v":{"v":0,"d":"R$ 0.00"}},{"$f":"C26*E26","v":{"v":0,"d":"R$ 0.00"}}]
[{"$nulls":3},"Itens @",null,{"$f":"B27*E27","v":{"v":0,"d":"R$ 0.00"}},{"$f":"C27*E27","v":{"v":0,"d":"R$ 0.00"}}]
[null,13,null,"Itens @",null,{"$f":"B28*E28","v":{"v":0,"d":"R$ 0.00"}},{"$f":"C28*E28","v":{"v":0,"d":"R$ 0.00"}}]
[null,"Total",{"$nulls":3},{"$f":"SUBTOTAL(109,VendasDeItens[Receita estimada])","v":{"v":0,"d":"R$ 0.00"}},{"$f":"SUBTOTAL(109,VendasDeItens[Receita real])","v":{"v":0,"d":"R$ 0.00"}}]

{"sheet":"Resumo de lucros e perdas","index":3,"n_rows":8,"n_cols":7,"rows_kept":8,"merged":[[0,1,0,3],[2,4,11,6]]}
["O gráfico resumo de Lucro e Perda mostrando a receita total e despesas é automaticamente atualizado nessa planilha. O título desta planilha é automaticamente atualizado nas células à direita. Subtítulo está na célula G1 e G2. Instruções úteis sobre como usar esta planilha estão nas células desta coluna. A próxima instrução está na célula A3.",{"$f":"Despesas!B1","v":"Orçamento de evento para o nome do evento"},{"$nulls":4},"LUCRO "]
[{"$nulls":6},"Resumo de perda"]
["O gráfico de barras comparando a receita estimada e receitas e despesas reais está na célula E3.",{"$nulls":3},"Gráfico de barras mostrando receitas e despesas estimadas e a comparação de receita e despesa real nessa célula."]
["A Tabela de resumo do orçamento que começa na célula à direita é atualizada automaticamente. A próxima instrução está na célula A8."," Total","Valor estimado","Real"]
[null,"Total de Renda",{"$f":"Receita!F4","v":{"v":1936,"d":"R$ 1,936.00"}},{"$f":"Receita!G4","v":{"v":1831,"d":"R$ 1,831.00"}}]
[null,"Despesas totais",{"$f":"Despesas!G4","v":{"v":882,"d":"R$ 882.00"}},{"$f":"Despesas!H4","v":{"v":333,"d":"R$ 333.00"}}]
[]
["O lucro total ou perda estimada é calculado automaticamente na célula C8 e o lucro Total ou perda real na célula D8.","O lucro total (ou perda)",{"$f":"C5-C6","v":{"v":1054,"d":"R$ 1,054.00"}},{"$f":"D5-D6","v":{"v":1498,"d":"R$ 1,498.00"}}]